bitfinex/quotes_BTCUSD_20241123
["timestamp","ask_amount","ask_price","bid_price","bid_amount"]
[1732396720466,0.12076231,97657.0,97653.0,0.051201]
[1732396722615,0.12076231,97657.0,97654.0,0.0512]
[1732396723467,0.12076231,97657.0,97656.0,0.0512]
[1732396723744,0.12076231,97657.0,97654.0,0.0512]
[1732396723745,0.12076231,97657.0,97655.0,0.0512]
[1732396723963,0.12076231,97657.0,97652.0,0.40344883]
[1732396724383,0.12076231,97657.0,97652.0,0.45465083]
[1732396724594,0.12076231,97657.0,97654.0,0.0512]
[1732396725676,0.12076231,97657.0,97654.0,0.45464883]
[1732396725882,0.12076231,97657.0,97655.0,0.0512]
[1732396726093,0.12076231,97657.0,97654.0,0.40344883]
[1732396726303,0.12248031,97657.0,97654.0,0.40344883]
[1732396726738,0.12248031,97657.0,97654.0,0.27360701]
[1732396726943,0.12248031,97657.0,97655.0,0.0512]
[1732396727149,0.12248031,97657.0,97656.0,0.0512]
[1732396727358,0.12248031,97657.0,97654.0,0.27360701]
[1732396727564,0.12248031,97657.0,97654.0,0.051201]
[1732396731602,0.12248031,97657.0,97656.0,0.0512]
[1732396731748,0.12248031,97657.0,97654.0,0.102401]
[1732396731948,0.12248031,97657.0,97656.0,0.0512]
[1732396732153,0.12248031,97657.0,97654.0,0.0512]
[1732396732813,0.12248031,97657.0,97656.0,0.0512]
[1732396733443,0.12248031,97657.0,97653.0,0.051201]
[1732396733655,0.102401,97655.0,97648.0,0.051204]
[1732396733869,0.12248031,97657.0,97648.0,0.051204]
[1732396734080,0.12248031,97657.0,97651.0,0.051202]
[1732396734293,0.12248031,97657.0,97653.0,0.051201]
[1732396734507,0.12248031,97657.0,97651.0,0.051202]
[1732396734708,0.12248031,97657.0,97653.0,0.051201]
[1732396734947,0.12248031,97657.0,97651.0,0.051202]
[1732396735167,0.12248031,97657.0,97648.0,0.051204]
[1732396735385,0.12248031,97657.0,97656.0,0.0512]
[1732396738580,0.12248031,97657.0,97654.0,0.0512]
[1732396739017,0.12248031,97657.0,97654.0,0.052059]
[1732396739436,0.12248031,97657.0,97654.0,0.103259]
[1732396739639,0.12248031,97657.0,97654.0,0.000859]
[1732396741008,0.12248031,97657.0,97654.0,0.05206]
[1732396741219,0.12248031,97657.0,97655.0,0.0512]
[1732396741836,0.12248031,97657.0,97654.0,0.000859]
[1732396742042,0.12248031,97657.0,97655.0,0.0512]
[1732396743333,0.12248031,97657.0,97656.0,0.0512]
[1732396743739,0.12248031,97657.0,97655.0,0.0512]
[1732396743963,0.12248031,97657.0,97656.0,0.0512]
[1732396745709,0.001718,97657.0,97656.0,0.0512]
[1732396745928,0.001718,97657.0,97656.0,0.1537271]
[1732396746179,0.001718,97657.0,97656.0,0.1767271]
[1732396746610,0.001718,97657.0,97656.0,0.17621427]
[1732396749040,0.001718,97657.0,97656.0,0.21749665]
[1732396755523,0.0461,97676.0,97657.0,0.023]
[1732396755746,0.0461,97676.0,97673.0,0.05119]
[1732396756087,0.0461,97676.0,97674.0,0.05119]
[1732396757275,0.0461,97676.0,97668.0,0.051193]
[1732396757477,0.0461,97676.0,97670.0,0.051192]
[1732396757681,0.0461,97676.0,97671.0,0.051192]
[1732396758340,0.0461,97676.0,97673.0,0.05119]
[1732396758764,0.0461,97676.0,97675.0,0.05119]
[1732396761466,0.0461,97676.0,97671.0,0.051192]
[1732396761676,0.0461,97676.0,97674.0,0.05119]
[1732396762097,0.0478182,97676.0,97674.0,0.05119]
[1732396762723,0.0478182,97676.0,97671.0,0.051192]
[1732396762724,0.0478182,97676.0,97673.0,0.051191]
[1732396763308,0.0478182,97676.0,97674.0,0.05119]
[1732396764531,0.0478182,97676.0,97675.0,0.05119]
[1732396764986,0.0478182,97676.0,97673.0,0.051191]
[1732396765198,0.0478182,97676.0,97675.0,0.05119]
[1732396767189,0.0017182,97676.0,97675.0,0.05119]
[1732396767394,0.0017182,97676.0,97675.0,0.05170242]
[1732396767604,0.0017186,97682.0,97681.0,0.051187]
[1732396768021,0.0017186,97682.0,97681.0,0.15320127]
[1732396770717,0.0017186,97682.0,97681.0,0.19505279]
[1732396777616,0.0472,97699.0,97681.0,0.14386579]
[1732396777854,0.0472,97699.0,97697.0,0.102356]
[1732396778026,0.0472,97699.0,97698.0,0.051178]
[1732396778877,0.0472,97699.0,97696.0,0.051178]
[1732396779100,0.0472,97699.0,97696.0,0.102356]
[1732396779557,0.0472,97699.0,97696.0,0.051178]
[1732396779766,0.0472,97699.0,97697.0,0.051178]
[1732396779973,0.0472,97699.0,97696.0,0.051179]
[1732396780611,0.04847946,97699.0,97696.0,0.051179]
[1732396781019,0.04847946,97699.0,97689.0,0.07912435]
[1732396781240,0.04847946,97699.0,97697.0,0.051178]
[1732396781869,0.04847946,97699.0,97697.0,0.040942]
[1732396782092,0.04847946,97699.0,97698.0,0.040942]
[1732396782307,0.04847946,97699.0,97697.0,0.040942]
[1732396783417,0.04847946,97699.0,97698.0,0.040942]
[1732396784067,0.0472,97699.0,97698.0,0.040942]
[1732396784743,0.0017184,97700.0,97699.0,0.040942]
[1732396785367,0.0017184,97700.0,97699.0,0.04345374]
[1732396785593,0.0017184,97700.0,97699.0,0.040942]
[1732396788070,0.0494,97712.0,97711.0,0.040937]
[1732396788540,0.0494,97712.0,97709.0,0.040937]
[1732396788758,0.0494,97712.0,97709.0,0.081874]
[1732396789397,0.0494,97712.0,97707.0,0.040938]
[1732396789668,0.0494,97712.0,97707.0,0.081876]
[1732396789877,0.0494,97712.0,97708.0,0.040938]
[1732396790261,0.0494,97712.0,97708.0,0.081875]
[1732396790486,0.0494,97712.0,97709.0,0.040937]
[1732396791116,0.0494,97712.0,97708.0,0.040937]
[1732396791547,0.0494,97712.0,97700.0,0.07912435]
[1732396791548,0.0494,97712.0,97701.0,0.04052669]
[1732396791764,0.0494,97712.0,97709.0,0.040937]
[1732396792552,0.12076231,97710.0,97690.0,0.07912435]
[1732396792875,0.0771,97704.0,97700.0,0.040941]
[1732396793079,0.17945,97704.0,97697.0,0.040942]
[1732396793282,0.17945,97704.0,97698.0,0.040942]
[1732396793283,0.0771,97704.0,97698.0,0.040942]
[1732396793543,0.17945,97704.0,97698.0,0.040942]
[1732396793749,0.0771,97704.0,97698.0,0.040942]
[1732396793919,0.179449,97704.0,97698.0,0.040942]
[1732396794081,0.0771,97704.0,97698.0,0.040942]
[1732396794521,0.102352,97702.0,97693.0,0.040944]
[1732396794721,0.0476,97703.0,97700.0,0.040941]
[1732396794996,0.0476,97703.0,97698.0,0.040942]
[1732396795348,0.0476,97703.0,97699.0,0.040941]
[1732396796170,0.0476,97703.0,97700.0,0.040941]
[1732396796370,0.0476,97703.0,97699.0,0.040941]
[1732396796371,0.0476,97703.0,97690.0,0.12049669]
[1732396796571,0.0476,97703.0,97701.0,0.04094]
[1732396797593,0.102354,97700.0,97694.0,0.040943]
[1732396797801,0.0476,97699.0,97694.0,0.040943]
[1732396798007,0.0476,97699.0,97698.0,0.0008586]
[1732396799176,0.149955,97699.0,97698.0,0.0008586]
[1732396801046,0.15123446,97699.0,97698.0,0.0008586]
[1732396801268,0.149955,97699.0,97698.0,0.0008586]
[1732396801963,0.0476,97699.0,97698.0,0.0008586]
[1732396802675,0.149955,97699.0,97698.0,0.0008586]
[1732396803104,0.0476,97699.0,97698.0,0.0008586]
[1732396805203,0.15123446,97699.0,97698.0,0.0008586]
[1732396807660,0.27199677,97699.0,97698.0,0.0008586]
[1732396807867,0.35091731,97699.0,97698.0,0.0008586]
[1732396809645,0.45293158,97699.0,97698.0,0.0008586]
[1732396810592,0.49541638,97699.0,97698.0,0.0008586]
[1732396811031,0.45293158,97699.0,97698.0,0.0008586]
[1732396813143,0.35057658,97699.0,97680.0,0.07912435]
[1732396813383,0.10237,97685.0,97677.0,0.040951]
[1732396813588,0.10365067,97684.0,97678.0,0.04095]
[1732396813804,0.00127967,97684.0,97677.0,0.040951]
[1732396814025,0.00127967,97687.0,97678.0,0.04095]
[1732396814249,0.10237,97685.0,97678.0,0.04095]
[1732396814469,0.00127967,97684.0,97678.0,0.04095]
[1732396815182,0.00127967,97684.0,97679.0,0.04095]
[1732396817561,0.0793,97683.0,97679.0,0.04095]
[1732396818348,0.0466,97682.0,97678.0,0.04095]
[1732396818779,0.0466,97682.0,97674.0,0.04148283]
[1732396819013,0.102381,97674.0,97667.0,0.040955]
[1732396819234,0.20134207,97677.0,97660.0,0.07912435]
[1732396819446,0.30372107,97677.0,97670.0,0.040953]
[1732396819652,0.10238,97675.0,97668.0,0.040954]
[1732396820054,0.148979,97676.0,97668.0,0.040954]
[1732396820224,0.0466,97676.0,97661.0,0.023]
[1732396820567,0.148979,97676.0,97664.0,0.040956]
[1732396820793,0.148979,97676.0,97671.0,0.040953]
[1732396821050,0.0466,97676.0,97670.0,0.040954]
[1732396821290,0.0466,97676.0,97666.0,0.07912435]
[1732396821519,0.0466,97676.0,97675.0,0.040952]
[1732396821749,0.0466,97676.0,97673.0,0.040952]
[1732396821980,0.0466,97676.0,97675.0,0.040952]
[1732396822700,0.20006231,97677.0,97675.0,0.040952]
[1732396822927,0.20006231,97677.0,97676.0,0.040951]
[1732396825101,0.20006231,97677.0,97674.0,0.040952]
[1732396825338,0.20006231,97677.0,97673.0,0.040952]
[1732396825590,0.20006231,97677.0,97675.0,0.040952]
[1732396827755,0.20006231,97677.0,97676.0,0.040951]
[1732396827967,0.20006231,97677.0,97670.0,0.040954]
[1732396828189,0.0465,97674.0,97668.0,0.0418126]
[1732396828636,0.0465,97674.0,97669.0,0.040954]
[1732396828899,0.0465,97674.0,97668.0,0.0418126]
[1732396829155,0.20184208,97673.0,97669.0,0.040954]
[1732396829422,0.20184208,97673.0,97670.0,0.040953]
[1732396829628,0.20184208,97673.0,97669.0,0.040954]
[1732396829905,0.20184208,97673.0,97671.0,0.040953]
[1732396830905,0.20184208,97673.0,97672.0,0.040953]
[1732396831159,0.20056231,97673.0,97672.0,0.040953]
[1732396831400,0.0798,97673.0,97672.0,0.040953]
[1732396834332,0.12076231,97677.0,97676.0,0.051189]
[1732396837096,0.12076231,97677.0,97675.0,0.051189]
[1732396837305,0.12076231,97677.0,97676.0,0.051189]
[1732396837713,0.12076231,97677.0,97668.0,0.051193]
[1732396837919,0.12204207,97677.0,97670.0,0.051192]
[1732396838131,0.147879,97676.0,97671.0,0.051191]
[1732396838334,0.147879,97676.0,97668.0,0.051193]
[1732396838335,0.12076231,97672.0,97670.0,0.051192]
[1732396838551,0.12076231,97672.0,97656.0,0.0520589]
[1732396838769,0.12076231,97672.0,97670.0,0.051192]
[1732396839003,0.12076231,97672.0,97667.0,0.051193]
[1732396839220,0.12076231,97672.0,97669.0,0.051192]
[1732396839454,0.12076231,97672.0,97670.0,0.051192]
[1732396839682,0.12076231,97672.0,97669.0,0.051193]
[1732396840115,0.12076231,97672.0,97668.0,0.051193]
[1732396840345,0.12076231,97672.0,97670.0,0.051192]
[1732396840781,0.12076231,97672.0,97660.0,0.12028976]
[1732396840992,0.12076231,97672.0,97668.0,0.051193]
[1732396841212,0.12076231,97672.0,97670.0,0.051192]
[1732396841657,0.12076231,97672.0,97663.0,0.051196]
[1732396841860,0.12076231,97672.0,97670.0,0.040954]
[1732396842280,0.12076231,97672.0,97660.0,0.12028976]
[1732396842281,0.12076231,97672.0,97669.0,0.040954]
[1732396842690,0.12076231,97672.0,97671.0,0.040953]
[1732396843118,0.12076231,97672.0,97669.0,0.040954]
[1732396844177,0.12076231,97672.0,97670.0,0.040954]
[1732396844414,0.12076231,97672.0,97669.0,0.040954]
[1732396844415,0.12076231,97672.0,97671.0,0.040953]
[1732396844620,0.12076231,97673.0,97672.0,0.040953]
[1732396844833,0.12076231,97673.0,97671.0,0.040953]
[1732396845049,0.12076231,97673.0,97669.0,0.040954]
[1732396845718,0.12076231,97673.0,97670.0,0.040953]
[1732396845923,0.12076231,97673.0,97671.0,0.040953]
[1732396846904,0.12076231,97673.0,97669.0,0.040954]
[1732396847143,0.12248011,97673.0,97671.0,0.040953]
[1732396847863,0.12248011,97673.0,97669.0,0.040954]
[1732396848087,0.12248011,97673.0,97669.0,0.081908]
[1732396848296,0.12248011,97673.0,97669.0,0.040954]
[1732396848722,0.12248011,97673.0,97670.0,0.040954]
[1732396850848,0.12248011,97673.0,97668.0,0.040954]
[1732396851055,0.12248011,97673.0,97669.0,0.040954]
[1732396851681,0.12204213,97672.0,97666.0,0.0008589]
[1732396851891,0.34575031,97667.0,97666.0,0.0008589]
[1732396854578,0.44776458,97667.0,97666.0,0.0008589]
[1732396859765,0.64776458,97667.0,97666.0,0.0008589]
[1732396861056,0.79776458,97667.0,97666.0,0.0008589]
[1732396861502,0.22316131,97657.0,97656.0,0.0008589]
[1732396861715,0.59977558,97657.0,97656.0,0.0008589]
[1732396861968,0.79977558,97657.0,97656.0,0.0008589]
[1732396862184,0.82277558,97657.0,97656.0,0.0008589]
[1732396863765,0.59977558,97657.0,97656.0,0.0008589]
[1732396865712,0.44977558,97657.0,97656.0,0.0008589]
[1732396869390,0.59977558,97657.0,97656.0,0.0008589]
[1732396869696,0.102363,97691.0,97672.0,0.040953]
[1732396869901,0.22314331,97675.0,97661.0,0.0848913]
[1732396870114,0.12076231,97665.0,97661.0,0.0848913]
[1732396870319,0.12076231,97665.0,97664.0,0.040956]
[1732396870766,0.12076231,97665.0,97661.0,0.0848913]
[1732396871219,0.12076231,97665.0,97661.0,0.1360883]
[1732396871670,0.12076231,97665.0,97663.0,0.051196]
[1732396872306,0.12076231,97665.0,97662.0,0.051196]
[1732396872520,0.12076231,97665.0,97664.0,0.051195]
[1732396874969,0.12076231,97665.0,97662.0,0.051196]
[1732396875185,0.12076231,97665.0,97661.0,0.1360883]
[1732396875400,0.12076231,97665.0,97663.0,0.051196]
[1732396875612,0.12076231,97665.0,97664.0,0.051195]
[1732396876919,0.12076231,97665.0,97663.0,0.051196]
[1732396877163,0.12076231,97665.0,97664.0,0.051195]
[1732396880063,0.0017176,97666.0,97665.0,0.1360863]
[1732396880555,0.0017176,97666.0,97665.0,0.13659881]
[1732396881007,0.0017176,97666.0,97665.0,0.13859881]
[1732396881245,0.0017176,97666.0,97665.0,0.13659881]
[1732396882487,0.0017176,97666.0,97665.0,0.1360863]
[1732396883700,0.0017176,97666.0,97665.0,0.17715593]
[1732396883892,0.0017176,97666.0,97665.0,0.1360863]
[1732396884101,0.0017176,97666.0,97665.0,0.48794278]
[1732396884311,0.0017176,97666.0,97664.0,0.051195]
[1732396884312,0.0017176,97666.0,97664.0,0.0848913]
[1732396884523,0.12375981,97666.0,97664.0,0.0848913]
[1732396885252,0.22315531,97662.0,97661.0,0.0008588]
[1732396887239,0.22315531,97662.0,97661.0,0.0008588]
[1732396887862,0.12076231,97662.0,97661.0,0.0008588]
[1732396888088,0.22443534,97662.0,97661.0,0.0008588]
[1732396888292,0.22315531,97662.0,97661.0,0.0008588]
[1732396889302,0.12076231,97654.0,97653.0,0.0848913]
[1732396889842,0.12076231,97654.0,97653.0,0.1360923]
[1732396890080,0.12076231,97654.0,97641.0,0.051207]
[1732396890320,0.12076231,97654.0,97653.0,0.051201]
[1732396890791,0.12076231,97654.0,97652.0,0.051201]
[1732396891252,0.12076231,97654.0,97640.0,0.15628517]
[1732396891482,0.12076231,97654.0,97651.0,0.051202]
[1732396891949,0.12076231,97654.0,97652.0,0.051201]
[1732396892191,0.12076231,97654.0,97648.0,0.051203]
[1732396892429,0.12076231,97654.0,97640.0,0.15628517]
[1732396892430,0.22316531,97654.0,97645.0,0.051205]
[1732396892652,0.22316531,97654.0,97640.0,0.15628517]
[1732396892653,0.12076231,97654.0,97640.0,0.15628517]
[1732396892922,0.12076231,97654.0,97648.0,0.051203]
[1732396893154,0.12076231,97654.0,97650.0,0.051203]
[1732396893639,0.12076231,97654.0,97640.0,0.15628517]
[1732396893874,0.12204237,97654.0,97645.0,0.051205]
[1732396894135,0.102403,97653.0,97647.0,0.051204]
[1732396894381,0.102406,97651.0,97643.0,0.051206]
[1732396894611,0.102406,97651.0,97638.0,0.0008591]
[1732396894612,0.12076231,97647.0,97638.0,0.0008591]
[1732396894828,0.12076231,97647.0,97639.0,0.051209]
[1732396895041,0.102411,97645.0,97639.0,0.051209]
[1732396895259,0.12076231,97647.0,97638.0,0.0008591]
[1732396895538,0.12204246,97647.0,97641.0,0.051207]
[1732396895764,0.12204246,97647.0,97638.0,0.0008591]
[1732396895765,0.12204246,97647.0,97643.0,0.051206]
[1732396896259,0.12076231,97647.0,97639.0,0.051209]
[1732396896486,0.12076231,97647.0,97638.0,0.0008591]
[1732396896487,0.12076231,97647.0,97640.0,0.051208]
[1732396896771,0.12076231,97647.0,97646.0,0.051205]
[1732396896966,0.12076231,97647.0,97644.0,0.051206]
[1732396897460,0.00128015,97648.0,97640.0,0.051208]
[1732396897692,0.12076231,97663.0,97655.0,0.0512]
[1732396897934,0.12076231,97663.0,97641.0,0.10201427]
[1732396897935,0.00127994,97662.0,97656.0,0.051199]
[1732396898168,0.00127994,97662.0,97653.0,0.051201]
[1732396898413,0.00127994,97662.0,97657.0,0.051199]
[1732396898635,0.00127994,97662.0,97653.0,0.051201]
[1732396898908,0.00127994,97662.0,97655.0,0.0512]
[1732396898909,0.10367394,97662.0,97655.0,0.0512]
[1732396899169,0.00127994,97662.0,97657.0,0.051199]
[1732396899403,0.12076231,97659.0,97650.0,0.12056227]
[1732396899632,0.12076231,97659.0,97655.0,0.0512]
[1732396899837,0.12076231,97659.0,97653.0,0.051201]
[1732396899838,0.12076231,97659.0,97657.0,0.051199]
[1732396900053,0.12076231,97659.0,97655.0,0.0512]
[1732396900261,0.12076231,97659.0,97656.0,0.051199]
[1732396900394,0.12076231,97659.0,97655.0,0.0512]
[1732396900613,0.12076231,97659.0,97656.0,0.051199]
[1732396902781,0.2837006,97665.0,97642.0,0.051207]
[1732396902782,0.12076231,97648.0,97642.0,0.051207]
[1732396902996,0.12076231,97646.0,97640.0,0.40399952]
[1732396903252,0.12076231,97646.0,97638.0,0.0008591]
[1732396903253,0.102414,97643.0,97638.0,0.0008591]
[1732396903453,0.12076231,97646.0,97638.0,0.0008591]
[1732396903454,0.0772,97645.0,97638.0,0.0520681]
[1732396903845,0.0772,97645.0,97638.0,0.0008591]
[1732396904053,0.0772,97645.0,97644.0,0.051206]
[1732396906023,0.0772,97655.0,97645.0,0.051205]
[1732396906228,0.0772,97655.0,97654.0,0.051201]
[1732396915818,0.0772,97655.0,97654.0,0.4557713]
[1732396916055,0.0772,97655.0,97654.0,0.051201]
[1732396916269,0.0772,97655.0,97654.0,0.4557713]
[1732396917839,0.0772,97655.0,97654.0,0.051201]
[1732396918262,0.0772,97655.0,97654.0,0.4557713]
[1732396918924,0.0772,97655.0,97654.0,0.051201]
[1732396919336,0.0772,97655.0,97654.0,0.4557713]
[1732396919773,0.078918,97655.0,97654.0,0.4557713]
[1732396920634,0.078918,97655.0,97654.0,0.051201]
[1732396923464,0.078918,97655.0,97654.0,0.45612306]
[1732396926280,0.30208131,97655.0,97654.0,0.40492206]
[1732396926501,0.22316531,97653.0,97652.0,0.40492206]
[1732396926707,0.22316531,97653.0,97652.0,0.40481885]
[1732396926921,0.22316631,97652.0,97651.0,0.27416018]
[1732396927538,0.22316631,97652.0,97647.0,0.051204]
[1732396927786,0.0012801,97651.0,97648.0,0.051204]
[1732396928006,0.0012801,97651.0,97649.0,0.051203]
[1732396928214,0.0012801,97651.0,97647.0,0.051204]
[1732396928452,0.0012801,97651.0,97649.0,0.051203]
[1732396929728,0.0012801,97651.0,97650.0,0.051203]
[1732396929938,0.12076231,97652.0,97651.0,0.051202]
[1732396930577,0.12076231,97652.0,97648.0,0.051204]
[1732396930783,0.0012801,97651.0,97648.0,0.051204]
[1732396930987,0.0012801,97651.0,97650.0,0.051203]
[1732396936026,0.0012801,97651.0,97650.0,0.0507221]
[1732396936470,0.0012801,97651.0,97648.0,0.051204]
[1732396936687,0.0012801,97651.0,97650.0,0.051203]
[1732396939590,0.078918,97655.0,97651.0,0.051202]
[1732396939828,0.078918,97655.0,97654.0,0.051201]
[1732396940270,0.001718,97655.0,97654.0,0.051201]
[1732396940932,0.001718,97655.0,97654.0,0.053201]
[1732396941164,0.001718,97655.0,97654.0,0.13367542]
[1732396941387,0.001718,97655.0,97654.0,0.28618822]
[1732396941626,0.001718,97655.0,97654.0,0.38768969]
[1732396942083,0.001718,97655.0,97654.0,0.38568969]
[1732396942505,0.001718,97655.0,97654.0,0.69602391]
[1732396942709,0.001718,97655.0,97654.0,0.38768969]
[1732396942915,0.001718,97655.0,97654.0,0.69609069]
[1732396943146,0.001718,97655.0,97654.0,0.24247542]
[1732396943360,0.001718,97655.0,97654.0,0.09247542]
[1732396944637,0.0017176,97665.0,97664.0,0.051195]
[1732396946527,0.0017176,97665.0,97657.0,0.201199]
[1732396946787,0.0017176,97665.0,97664.0,0.051195]
[1732396947497,0.0017176,97665.0,97655.0,0.06840737]
[1732396947722,0.0017176,97665.0,97664.0,0.051195]
[1732396948372,0.0017176,97665.0,97663.0,0.27396032]
[1732396948588,0.0796975,97665.0,97664.0,0.27395415]
[1732396948805,0.0796975,97665.0,97655.0,0.04085926]
[1732396948806,0.0784176,97665.0,97662.0,0.27395415]
[1732396949670,0.0784176,97665.0,97663.0,0.27395415]
[1732396950319,0.0784176,97665.0,97662.0,0.32515015]
[1732396950523,0.0784176,97665.0,97664.0,0.051195]
[1732396951841,0.0784176,97665.0,97664.0,0.32529662]
[1732396952271,0.0784176,97665.0,97664.0,0.051195]
[1732396952695,0.0784176,97665.0,97663.0,0.27410162]
[1732396953127,0.0784176,97665.0,97663.0,0.31505762]
[1732396953563,0.0784176,97665.0,97664.0,0.31505762]
[1732396953775,0.0784176,97665.0,97664.0,0.040956]
[1732396956609,0.0784176,97665.0,97655.0,0.04098413]
[1732396956817,0.0784176,97665.0,97664.0,0.040956]
[1732396957679,0.0784176,97665.0,97664.0,0.44567788]
[1732396957884,0.0784176,97665.0,97664.0,0.040956]
[1732396958536,0.0784176,97665.0,97664.0,0.44567788]
[1732396958980,0.0784176,97665.0,97664.0,0.040956]
[1732396959409,0.0784176,97665.0,97664.0,0.44568609]
[1732396961475,0.0784176,97665.0,97664.0,0.40473009]
[1732396961865,0.0784176,97665.0,97663.0,0.44568709]
[1732396962087,0.0784176,97665.0,97659.0,0.040958]
[1732396962088,0.0784176,97665.0,97664.0,0.40473009]
[1732396962293,0.0784176,97665.0,97663.0,0.40473009]
[1732396962739,0.181292,97663.0,97661.0,0.40473009]
[1732396962937,0.10367295,97662.0,97661.0,0.40473009]
[1732396963257,0.10367295,97662.0,97660.0,0.40473009]
[1732396963482,0.00127995,97662.0,97660.0,0.40473009]
[1732396963936,0.10367395,97662.0,97659.0,0.40473009]
[1732396964352,0.102395,97661.0,97659.0,0.40473009]
[1732396964564,0.00127995,97662.0,97659.0,0.40473009]
[1732396965408,0.10367395,97662.0,97659.0,0.40473009]
[1732396965609,0.00127995,97662.0,97659.0,0.40473009]
[1732396965812,0.12076231,97660.0,97659.0,0.40473009]
[1732396966024,0.12204228,97660.0,97659.0,0.40473009]
[1732396966486,0.22443828,97660.0,97659.0,0.40473009]
[1732396966697,0.22315831,97660.0,97659.0,0.40473009]
[1732396966934,0.12076231,97660.0,97659.0,0.40473009]
[1732396967144,0.12204228,97660.0,97659.0,0.40473009]
[1732396967344,0.22443828,97660.0,97659.0,0.40473009]
[1732396967472,0.22315831,97660.0,97659.0,0.40473009]
[1732396968260,0.22315931,97659.0,97658.0,0.40473009]
[1732396968688,0.102398,97658.0,97657.0,0.40473009]
[1732396968894,0.102399,97657.0,97656.0,0.40473009]
[1732396969057,0.1024,97656.0,97655.0,0.0008589]
[1732396970788,0.45695664,97656.0,97655.0,0.0008589]
[1732396970988,0.45567658,97656.0,97655.0,0.0008589]
[1732396973348,0.47867658,97656.0,97655.0,0.0008589]
[1732396973873,0.62867658,97656.0,97655.0,0.0008589]
[1732396977358,0.82867658,97656.0,97655.0,0.0008589]
[1732396977793,0.24616731,97651.0,97650.0,0.0008589]
[1732396978009,0.47498158,97651.0,97650.0,0.0008589]
[1732396980150,0.12076231,97623.0,97620.0,0.02584792]
[1732396980371,0.12076231,97623.0,97615.0,0.040977]
[1732396980372,0.102436,97621.0,97615.0,0.040977]
[1732396980587,0.12076231,97618.0,97607.0,0.19098]
[1732396980802,0.204879,97619.0,97607.0,0.19098]
[1732396980803,0.32564431,97617.0,97607.0,0.19098]
[1732396981026,0.12076231,97613.0,97600.0,0.4847499]
[1732396981243,0.102446,97612.0,97604.0,0.040981]
[1732396981476,0.12076231,97609.0,97600.0,0.12096388]
[1732396981693,0.12076231,97609.0,97604.0,0.040981]
[1732396981897,0.12076231,97609.0,97606.0,0.040981]
[1732396982134,0.12076231,97609.0,97607.0,0.04098]
[1732396982574,0.12076231,97609.0,97608.0,0.04098]
[1732396983000,0.12076231,97619.0,97606.0,0.042]
[1732396983208,0.12076231,97623.0,97622.0,0.040974]
[1732396983420,0.12076231,97623.0,97613.0,0.07912228]
[1732396983625,0.00128046,97626.0,97613.0,0.07912228]
[1732396983626,0.00128046,97626.0,97625.0,0.040973]
[1732396983832,0.12076231,97628.0,97626.0,0.040972]
[1732396984031,0.12076231,97625.0,97624.0,0.040973]
[1732396984464,0.0467,97630.0,97629.0,0.040971]
[1732396984673,0.12076231,97630.0,97629.0,0.040971]
[1732396984902,0.12548864,97630.0,97629.0,0.040971]
[1732396986271,0.00472633,97630.0,97629.0,0.040971]
[1732396986478,0.12548864,97630.0,97629.0,0.040971]
[1732396986679,0.12076231,97630.0,97629.0,0.040971]
[1732396986944,0.12548864,97630.0,97629.0,0.040971]
[1732396989492,0.12548864,97630.0,97620.0,0.0821527]
[1732396989493,0.12076231,97627.0,97620.0,0.0821527]
[1732396989758,0.12076231,97625.0,97622.0,0.040974]
[1732396989957,0.12076231,97625.0,97624.0,0.040973]
[1732396990164,0.12076231,97625.0,97623.0,0.040973]
[1732396990400,0.12076231,97625.0,97624.0,0.040973]
[1732396990837,0.00128043,97629.0,97624.0,0.040973]
[1732396991072,0.00128043,97628.0,97627.0,0.040972]
[1732396991304,0.12076231,97630.0,97627.0,0.040972]
[1732396991305,0.12204272,97630.0,97627.0,0.040972]
[1732396991535,0.12204272,97630.0,97629.0,0.0008589]
[1732396992230,0.12076231,97630.0,97629.0,0.0008589]
[1732396994609,0.12204273,97630.0,97629.0,0.0008589]
[1732396995038,0.12713471,97630.0,97629.0,0.0008589]
[1732396999700,0.00509198,97630.0,97629.0,0.0008589]
[1732396999903,0.00509198,97630.0,97629.0,0.0418299]
[1732397000356,0.12076231,97631.0,97629.0,0.0418299]
[1732397000564,0.004498,97630.0,97629.0,0.0418299]
[1732397002984,0.0062164,97630.0,97629.0,0.0418299]
[1732397003617,0.0017184,97630.0,97629.0,0.0418299]
[1732397005354,0.0017184,97630.0,97629.0,0.040971]
[1732397009444,0.0017184,97630.0,97620.0,0.04060475]
[1732397009445,0.12076231,97624.0,97620.0,0.04060475]
[1732397009676,0.12076231,97624.0,97621.0,0.040974]
[1732397009849,0.12076231,97624.0,97613.0,0.040978]
[1732397010051,0.20614245,97627.0,97610.0,0.12033289]
[1732397010052,0.0481,97619.0,97610.0,0.12033289]
[1732397010276,0.04938051,97619.0,97613.0,0.040978]
[1732397010495,0.00448387,97618.0,97613.0,0.040978]
[1732397010828,0.00448387,97618.0,97617.0,0.040976]
[1732397011444,0.00448387,97618.0,97614.0,0.040977]
[1732397011652,0.00448387,97618.0,97613.0,0.040977]
[1732397012070,0.00448387,97618.0,97614.0,0.040977]
[1732397012685,0.00448387,97618.0,97615.0,0.040977]
[1732397013124,0.00448387,97618.0,97614.0,0.040977]
[1732397013329,0.00448387,97618.0,97614.0,0.081954]
[1732397013543,0.00448387,97618.0,97615.0,0.040977]
[1732397013751,0.00448387,97618.0,97614.0,0.040977]
[1732397013752,0.00448387,97618.0,97616.0,0.040976]
[1732397013957,0.00448387,97618.0,97609.0,0.1613285]
[1732397013958,0.00448387,97618.0,97611.0,0.040978]
[1732397014178,0.00448387,97618.0,97609.0,0.09644825]
[1732397014179,0.00448387,97618.0,97612.0,0.040978]
[1732397014385,0.00448387,97618.0,97614.0,0.040977]
[1732397015004,0.00448387,97618.0,97615.0,0.040977]
[1732397015822,0.00448387,97618.0,97612.0,0.040978]
[1732397016003,0.00448387,97618.0,97609.0,0.05546925]
[1732397016004,0.00448387,97618.0,97613.0,0.040978]
[1732397016876,0.00448387,97618.0,97609.0,0.05546925]
[1732397017053,0.00448387,97618.0,97616.0,0.040976]
[1732397017687,0.00448387,97618.0,97613.0,0.040977]
[1732397017891,0.00448387,97618.0,97614.0,0.040977]
[1732397018306,0.00448387,97618.0,97615.0,0.040977]
[1732397020600,0.00448387,97618.0,97613.0,0.081954]
[1732397020803,0.00448387,97618.0,97614.0,0.040977]
[1732397021029,0.102441,97617.0,97611.0,0.081956]